fUST/lending_fUST_20250806
["ID","MTS","AMOUNT","RATE_DAILY","PERIOD"]
[377448825,1754415052944,-460.0,0.00028219,2]
[377448826,1754415052953,-460.0,0.00028219,2]
[377448827,1754415052963,-827.63,0.00028219,2]
[377448828,1754415052973,-460.0,0.00028219,2]
[377448829,1754415052982,-460.0,0.00028219,2]
[377448830,1754415052992,-259.01234341,0.00028219,2]
[377448831,1754415053002,-460.0,0.00028219,2]
[377448832,1754415053012,-1381.82,0.00028219,2]
[377448833,1754415053024,-460.0,0.00028219,2]
[377448834,1754415053034,-460.0,0.00028219,2]
[377448835,1754415053043,-693.76,0.00028219,2]
[377448837,1754415053053,-460.0,0.00028219,2]
[377448839,1754415053067,-1179.1,0.00028219,2]
[377448841,1754415053077,-676.55,0.00028219,2]
[377448843,1754415053087,-471.73,0.00028219,2]
[377448845,1754415053097,-460.0,0.00028219,2]
[377448847,1754415053110,-460.0,0.00028219,2]
[377448849,1754415053120,-460.0,0.00028219,2]
[377448851,1754415053130,-1188.0,0.00028219,2]
[377448854,1754415053140,-460.0,0.00028219,2]
[377448856,1754415053151,-460.0,0.00028219,2]
[377448858,1754415053160,-463.99578889,0.00028219,2]
[377448860,1754415053170,-150.47853833,0.00028221,5]
[377448862,1754415053180,-153.25,0.00028261,15]
[377448864,1754415053190,-153.14,0.00028272,15]
[377448866,1754415053200,-222.82383405,0.00028273,2]
[377448879,1754415053318,-153.63,0.00028273,15]
[377448881,1754415053328,-153.04,0.00028284,15]
[377448883,1754415053337,-153.25,0.00028361,15]
[377448885,1754415053346,-1800.0,0.00028367,7]
[377448887,1754415053355,-153.14,0.00028372,15]
[377448888,1754415053364,-153.63,0.00028373,15]
[377448890,1754415053373,-153.04,0.00028384,15]
[377448892,1754415053383,-260.0,0.00028396,2]
[377448894,1754415053392,-153.25,0.00028461,15]
[377448896,1754415053401,-928.51014532,0.00028468,5]
[377448898,1754415053411,-1500.0,0.00028468,2]
[377448899,1754415053419,-350.0,0.00028468,5]
[377448901,1754415053429,-1500.0,0.00028468,5]
[377448903,1754415053437,-1500.0,0.00028468,5]
[377448905,1754415053447,-153.14,0.00028472,15]
[377448907,1754415053457,-500.82773618,0.00028473,5]
[377448909,1754415053466,-153.63,0.00028473,15]
[377448911,1754415053475,-153.04,0.00028484,15]
[377448913,1754415053485,-571.67,0.00028493,2]
[377448915,1754415053495,-460.0,0.00028493,2]
[377448917,1754415053504,-460.0,0.00028493,2]
[377448919,1754415053513,-500.0,0.00028493,2]
[377448921,1754415053522,-986.09,0.00028493,2]
[377448923,1754415053532,-460.0,0.00028493,2]
[377448925,1754415053541,-3352.64,0.00028493,2]
[377448927,1754415053550,-460.0,0.00028493,2]
[377448929,1754415053559,-565.26,0.00028493,2]
[377448930,1754415053568,-1270.03,0.00028493,2]
[377448932,1754415053578,-460.0,0.00028493,2]
[377448934,1754415053587,-1043.48,0.00028493,2]
[377448936,1754415053597,-460.0,0.00028493,2]
[377448938,1754415053606,-460.0,0.00028493,2]
[377448940,1754415053615,-460.0,0.00028493,2]
[377448942,1754415053624,-460.0,0.00028493,2]
[377448944,1754415053633,-669.24,0.00028493,2]
[377448946,1754415053642,-349.3860559,0.00028493,2]
[377448948,1754415053651,-460.0,0.00028493,2]
[377448950,1754415053661,-460.0,0.00028493,2]
[377448952,1754415053670,-460.0,0.00028493,2]
[377448954,1754415053679,-460.0,0.00028493,2]
[377448956,1754415053688,-460.0,0.00028493,2]
[377448958,1754415053697,-466.90102019,0.00028493,2]
[377448960,1754415053707,-661.32,0.00028493,2]
[377448961,1754415053716,-460.0,0.00028493,2]
[377448963,1754415053725,-460.0,0.00028493,2]
[377448965,1754415053735,-460.0,0.00028493,2]
[377448967,1754415053744,-460.0,0.00028493,2]
[377448969,1754415053753,-460.0,0.00028493,2]
[377448971,1754415053763,-460.0,0.00028493,2]
[377448973,1754415053772,-460.0,0.00028493,2]
[377448975,1754415053782,-846.11,0.00028493,2]
[377448977,1754415053791,-460.0,0.00028493,2]
[377448979,1754415053800,-460.0,0.00028493,2]
[377448981,1754415053810,-500.0,0.00028493,2]
[377448983,1754415053821,-460.0,0.00028493,2]
[377448985,1754415053831,-3818.35,0.00028493,2]
[377448987,1754415053840,-2389.53,0.00028493,2]
[377448989,1754415053850,-327.72928375,0.00028493,2]
[377448991,1754415053860,-535.36,0.00028493,2]
[377448993,1754415053869,-380.2494999,0.00028493,2]
[377448995,1754415053879,-465.29334933,0.00028493,2]
[377448997,1754415053889,-460.0,0.00028493,2]
[377448999,1754415053898,-56223.51,0.00028493,2]
[377449001,1754415053907,-464.19185813,0.00028493,2]
[377449003,1754415053917,-460.0,0.00028493,2]
[377449005,1754415053926,-2020.1,0.00028493,2]
[377449007,1754415053935,-1687.27,0.00028493,2]
[377449009,1754415053945,-460.0,0.00028493,2]
[377449011,1754415053954,-466.64124743,0.00028493,2]
[377449013,1754415053963,-487.65,0.00028493,2]
[377449015,1754415053973,-460.0,0.00028493,2]
[377449017,1754415053982,-460.0,0.00028493,2]
[377449019,1754415053992,-467.54775354,0.00028493,2]
[377449021,1754415054001,-487.64233149,0.00028493,2]
[377449023,1754415054011,-460.0,0.00028493,2]
[377449025,1754415054021,-460.0,0.00028493,2]
[377449027,1754415054032,-460.0,0.00028493,2]
[377449029,1754415054041,-469.99399809,0.00028493,2]
[377449031,1754415054050,-297.64655322,0.00028493,2]
[377449033,1754415054062,-460.0,0.00028493,2]
[377449035,1754415054072,-460.0,0.00028493,2]
[377449037,1754415054081,-646.27,0.00028493,2]
[377449039,1754415054091,-460.0,0.00028493,2]
[377449041,1754415054104,-928.38,0.00028493,2]
[377449043,1754415054114,-1122.11,0.00028493,2]
[377449045,1754415054124,-1784.15,0.00028493,2]
[377449047,1754415054133,-460.0,0.00028493,2]
[377449049,1754415054142,-1060.85,0.00028493,2]
[377449051,1754415054151,-460.0,0.00028493,2]
[377449053,1754415054160,-218.13481286,0.00028493,2]
[377449055,1754415054169,-460.0,0.00028493,2]
[377449057,1754415054179,-460.0,0.00028493,2]
[377449059,1754415054189,-460.0,0.00028493,2]
[377449061,1754415054198,-153.384366,0.00028493,7]
[377449063,1754415054208,-701.38,0.00028493,2]
[377449065,1754415054217,-460.0,0.00028493,2]
[377449067,1754415054227,-460.0,0.00028493,2]
[377449069,1754415054236,-525.29,0.00028493,2]
[377449071,1754415054245,-151.0,0.00028493,7]
[377449073,1754415054254,-460.0,0.00028493,2]
[377449074,1754415054264,-2833.3,0.00028493,2]
[377449076,1754415054273,-151.0,0.00028493,7]
[377449078,1754415054282,-460.0,0.00028493,2]
[377449080,1754415054292,-467.65339589,0.00028493,2]
[377449082,1754415054301,-460.0,0.00028493,2]
[377449084,1754415054310,-477.91132993,0.00028493,2]
[377449086,1754415054319,-460.0,0.00028493,2]
[377449088,1754415054329,-460.0,0.00028493,2]
[377449090,1754415054339,-460.0,0.00028493,2]
[377449092,1754415054348,-151.0,0.00028493,7]
[377449094,1754415054357,-460.0,0.00028493,2]
[377449096,1754415054366,-570.22039332,0.00028493,2]
[377449098,1754415054376,-151.0,0.00028493,7]
[377449100,1754415054385,-1926.76,0.00028493,2]
[377449102,1754415054394,-460.0,0.00028493,2]
[377449104,1754415054403,-151.0,0.00028493,7]
[377449106,1754415054412,-466.52609437,0.00028493,2]
[377449108,1754415054421,-460.0,0.00028493,2]
[377449110,1754415054430,-1135.24,0.00028493,2]
[377449112,1754415054439,-1547.47,0.00028493,2]
[377449114,1754415054448,-460.0,0.00028493,2]
[377449116,1754415054457,-151.0,0.00028493,7]
[377449118,1754415054468,-675.85,0.00028493,2]
[377449120,1754415054477,-151.0,0.00028493,7]
[377449122,1754415054486,-460.0,0.00028493,2]
[377449124,1754415054495,-862.88,0.00028493,2]
[377449126,1754415054505,-462.3,0.00028493,2]
[377449127,1754415054514,-828.49,0.00028493,2]
[377449130,1754415054523,-460.0,0.00028493,2]
[377449132,1754415054533,-152.916843,0.00028493,7]
[377449133,1754415054543,-151.0,0.00028493,7]
[377449135,1754415054552,-151.0,0.00028493,7]
[377449137,1754415054561,-151.0,0.00028493,7]
[377449139,1754415054571,-379.619623,0.00028493,7]
[377449141,1754415054582,-471.08155288,0.00028493,2]
[377449143,1754415054591,-460.0,0.00028493,2]
[377449145,1754415054600,-379.619623,0.00028493,7]
[377449147,1754415054610,-370.88158464,0.00028493,2]
[377449149,1754415054619,-460.0,0.00028493,2]
[377449151,1754415054628,-460.0,0.00028493,2]
[377449153,1754415054638,-460.0,0.00028493,2]
[377449155,1754415054647,-460.0,0.00028493,2]
[377449157,1754415054656,-460.0,0.00028493,2]
[377449159,1754415054666,-460.0,0.00028493,2]
[377449161,1754415054675,-827.63,0.00028493,2]
[377449163,1754415054684,-460.0,0.00028493,2]
[377449165,1754415054693,-460.0,0.00028493,2]
[377449167,1754415054702,-151.0,0.00028493,7]
[377449169,1754415054711,-460.0,0.00028493,2]
[377449171,1754415054720,-1381.82,0.00028493,2]
[377449173,1754415054729,-460.0,0.00028493,2]
[377449175,1754415054738,-693.76,0.00028493,2]
[377449177,1754415054747,-151.0,0.00028493,7]
[377449179,1754415054756,-460.0,0.00028493,2]
[377449181,1754415054765,-151.0,0.00028493,7]
[377449183,1754415054775,-676.55,0.00028493,2]
[377449185,1754415054784,-1179.1,0.00028493,2]
[377449187,1754415054793,-151.0,0.00028493,7]
[377449189,1754415054802,-471.73,0.00028493,2]
[377449191,1754415054812,-155.46,0.00028493,2]
[377449192,1754415054821,-464.2556027,0.00028493,2]
[377449194,1754415054832,-460.0,0.00028493,2]
[377449196,1754415054841,-1188.0,0.00028493,2]
[377449198,1754415054850,-151.0,0.00028493,7]
[377449200,1754415054860,-460.0,0.00028493,2]
[377449202,1754415054870,-460.0,0.00028493,2]
[377449204,1754415054879,-1680.0,0.00028506,2]
[377449206,1754415054890,-420.0,0.00028506,2]
[377449208,1754415054899,-386.0,0.00028506,2]
[377449210,1754415054908,-153.0,0.00028553,2]
[377449212,1754415054917,-153.0,0.00028553,2]
[377449214,1754415054927,-153.0,0.00028553,2]
[377449216,1754415054936,-153.0,0.00028553,2]
[377449218,1754415054946,-153.0,0.00028553,2]
[377449220,1754415054955,-153.0,0.00028553,2]
[377449222,1754415054965,-153.0,0.00028553,2]
[377449224,1754415054974,-153.0,0.00028553,2]
[377449226,1754415054984,-153.0,0.00028553,2]
[377449228,1754415054993,-153.0,0.00028553,2]
[377449230,1754415055002,-153.0,0.00028553,2]
[377449232,1754415055012,-153.0,0.00028553,2]
[377449234,1754415055024,-153.0,0.00028553,2]
[377449236,1754415055036,-153.25,0.00028561,15]
[377449238,1754415055045,-526.93134924,0.00028564,5]
[377449240,1754415055055,-500.0,0.00028564,5]
[377449242,1754415055065,-2500.0,0.00028564,5]
[377449244,1754415055075,-153.14,0.00028572,15]
[377449246,1754415055084,-153.67,0.00028573,15]
[377449248,1754415055093,-153.04,0.00028584,15]
[377449250,1754415055105,-1000.0,0.000286,2]
[377449252,1754415055115,-1680.0,0.00028633,2]
[377449254,1754415055124,-153.25,0.00028661,15]
[377449256,1754415055133,-8203.55901194,0.00028667,2]
[377449258,1754415055143,-153.14,0.00028672,15]
[377449260,1754415055152,-153.04,0.00028684,15]
[377449262,1754415055161,-153.25,0.00028761,15]
[377449264,1754415055170,-571.67,0.00028767,2]
[377449266,1754415055180,-460.0,0.00028767,2]
[377449268,1754415055190,-460.0,0.00028767,2]
[377449270,1754415055199,-500.0,0.00028767,2]
[377449272,1754415055208,-986.09,0.00028767,2]
[377449274,1754415055218,-460.0,0.00028767,2]
[377449276,1754415055228,-3352.64,0.00028767,2]
[377449278,1754415055237,-460.0,0.00028767,2]
[377449280,1754415055247,-565.26,0.00028767,2]
[377449282,1754415055257,-1270.03,0.00028767,2]
[377449284,1754415055266,-460.0,0.00028767,2]
[377449286,1754415055275,-1043.48,0.00028767,2]
[377449288,1754415055285,-315.08,0.00028767,2]
[377449290,1754415055294,-470.51030428,0.00028767,2]
[377449292,1754415055303,-460.0,0.00028767,2]
[377449294,1754415055312,-669.24,0.00028767,2]
[377449296,1754415055322,-460.0,0.00028767,2]
[377449298,1754415055333,-460.0,0.00028767,2]
[377449300,1754415055342,-460.0,0.00028767,2]
[377449302,1754415055351,-460.0,0.00028767,2]
[377449304,1754415055361,-661.32,0.00028767,2]
[377449306,1754415055371,-460.0,0.00028767,2]
[377449308,1754415055379,-460.0,0.00028767,2]
[377449310,1754415055389,-460.0,0.00028767,2]
[377449312,1754415055398,-460.0,0.00028767,2]
[377449313,1754415055407,-475.73877708,0.00028767,2]
[377449315,1754415055417,-846.11,0.00028767,2]
[377449316,1754415055426,-236.42969565,0.00028767,2]
[377449317,1754415055435,-460.0,0.00028767,2]
[377449318,1754415055444,-500.0,0.00028767,2]
[377449319,1754415055453,-460.0,0.00028767,2]
[377449320,1754415055463,-151.0,0.00028767,7]
[377449321,1754415055471,-3818.35,0.00028767,2]
[377449322,1754415055480,-2389.53,0.00028767,2]
[377449323,1754415055489,-535.36,0.00028767,2]
[377449324,1754415055498,-151.0,0.00028767,7]
[377449325,1754415055506,-460.0,0.00028767,2]
[377449326,1754415055515,-56223.51,0.00028767,2]
[377449327,1754415055524,-460.0,0.00028767,2]
[377449328,1754415055533,-2020.1,0.00028767,2]
[377449329,1754415055542,-1687.27,0.00028767,2]
[377449330,1754415055550,-363.69784766,0.00028767,2]
[377449332,1754415055559,-151.0,0.00028767,7]
[377449345,1754415055666,-487.65,0.00028767,2]
[377449347,1754415055676,-460.0,0.00028767,2]
[377449349,1754415055685,-460.0,0.00028767,2]
[377449351,1754415055695,-151.0,0.00028767,7]
[377449353,1754415055704,-460.0,0.00028767,2]
[377449355,1754415055713,-472.54362452,0.00028767,2]
[377449357,1754415055722,-460.0,0.00028767,2]
[377449359,1754415055731,-151.0,0.00028767,7]
[377449361,1754415055740,-460.0,0.00028767,2]
[377449363,1754415055749,-460.0,0.00028767,2]
[377449365,1754415055759,-646.27,0.00028767,2]
[377449367,1754415055768,-151.0,0.00028767,7]
[377449370,1754415055777,-151.0,0.00028767,7]
[377449372,1754415055787,-460.0,0.00028767,2]
[377449374,1754415055796,-928.38,0.00028767,2]
[377449375,1754415055805,-1122.11,0.00028767,2]
[377449377,1754415055814,-1784.15,0.00028767,2]
[377449379,1754415055824,-151.0,0.00028767,7]
[377449382,1754415055835,-608.88760682,0.00028767,2]
[377449384,1754415055844,-1060.85,0.00028767,2]
[377449386,1754415055853,-460.0,0.00028767,2]
[377449388,1754415055862,-460.0,0.00028767,2]
[377449390,1754415055871,-419.08537142,0.00028767,2]
[377449391,1754415055880,-235.12865115,0.00028767,2]
[377449393,1754415055889,-701.38,0.00028767,2]
[377449395,1754415055899,-525.29,0.00028767,2]
[377449397,1754415055908,-460.0,0.00028767,2]
[377449399,1754415055917,-151.0,0.00028767,7]
[377449401,1754415055928,-2833.3,0.00028767,2]
[377449403,1754415055937,-151.0,0.00028767,7]
[377449406,1754415055948,-460.0,0.00028767,2]
[377449408,1754415055958,-460.0,0.00028767,2]
[377449410,1754415055967,-460.0,0.00028767,2]
[377449412,1754415055976,-460.0,0.00028767,2]
[377449414,1754415055986,-460.0,0.00028767,2]
[377449416,1754415055995,-460.0,0.00028767,2]
[377449418,1754415056003,-151.0,0.00028767,7]
[377449420,1754415056013,-151.0,0.00028767,7]
[377449421,1754415056024,-1926.76,0.00028767,2]
[377449424,1754415056035,-460.0,0.00028767,2]
[377449426,1754415056044,-460.0,0.00028767,2]
[377449428,1754415056054,-1135.24,0.00028767,2]
[377449429,1754415056065,-1547.47,0.00028767,2]
[377449432,1754415056075,-460.0,0.00028767,2]
[377449434,1754415056085,-675.85,0.00028767,2]
[377449436,1754415056094,-460.0,0.00028767,2]
[377449438,1754415056105,-862.88,0.00028767,2]
[377449440,1754415056114,-462.3,0.00028767,2]
[377449442,1754415056124,-828.49,0.00028767,2]
[377449444,1754415056133,-460.0,0.00028767,2]
[377449446,1754415056142,-460.0,0.00028767,2]
[377449448,1754415056152,-468.56722548,0.00028767,2]
[377449450,1754415056161,-460.0,0.00028767,2]
[377449452,1754415056170,-460.0,0.00028767,2]
[377449454,1754415056179,-460.0,0.00028767,2]
[377449456,1754415056188,-460.0,0.00028767,2]
[377449458,1754415056198,-827.63,0.00028767,2]
[377449460,1754415056208,-460.0,0.00028767,2]
[377449462,1754415056218,-460.0,0.00028767,2]
[377449464,1754415056228,-460.0,0.00028767,2]
[377449466,1754415056238,-1381.82,0.00028767,2]
[377449468,1754415056247,-693.76,0.00028767,2]
[377449470,1754415056256,-460.0,0.00028767,2]
[377449472,1754415056267,-676.55,0.00028767,2]
[377449474,1754415056276,-1179.1,0.00028767,2]
[377449476,1754415056284,-471.73,0.00028767,2]
[377449478,1754415056293,-460.0,0.00028767,2]
[377449480,1754415056302,-1188.0,0.00028767,2]
[377449482,1754415056311,-467.50860908,0.00028767,2]
[377449484,1754415056321,-153.23,0.00028772,15]
[377449486,1754415056331,-153.05,0.00028784,15]
[377449488,1754415056341,-297.761795,0.00028792,2]
[377449490,1754415056350,-2883.65161929,0.00028857,2]
[377449492,1754415056360,-153.25,0.00028861,15]
[377449494,1754415056370,-151.0,0.00028903,2]
[377449496,1754415056379,-2183.31810187,0.00028903,2]
[377449498,1754415056388,-151.0,0.00028903,2]
[377449500,1754415056398,-300.0,0.00028903,2]
[377449503,1754415056407,-151.0,0.00028903,2]
[377449504,1754415056417,-157.59247107,0.00028903,2]
[377449506,1754415056426,-300.0,0.00028903,2]
[377449509,1754415056435,-151.0,0.00028903,2]
[377449511,1754415056444,-151.0,0.00028903,2]
[377449513,1754415056454,-300.0,0.00028903,2]
[377449515,1754415056463,-151.0,0.00028903,2]
[377449517,1754415056472,-300.0,0.00028903,2]
[377449519,1754415056482,-151.0,0.00028903,2]
[377449521,1754415056491,-300.0,0.00028903,2]
[377449523,1754415056500,-151.0,0.00028903,2]
[377449525,1754415056509,-151.0,0.00028903,2]
[377449527,1754415056518,-300.0,0.00028903,2]
[377449528,1754415056528,-151.0,0.00028903,2]
[377449530,1754415056537,-151.0,0.00028903,2]
[377449532,1754415056547,-300.0,0.00028903,2]
[377449535,1754415056556,-151.0,0.00028903,2]
[377449536,1754415056565,-151.0,0.00028903,2]
[377449539,1754415056575,-300.0,0.00028903,2]
[377449541,1754415056585,-151.0,0.00028903,2]
[377449543,1754415056594,-151.0,0.00028903,2]
[377449545,1754415056604,-151.0,0.00028903,2]
[377449546,1754415056613,-151.0,0.00028903,2]
[377449549,1754415056623,-151.0,0.00028903,2]
[377449551,1754415056632,-151.0,0.00028903,2]
[377449553,1754415056641,-300.0,0.00028903,2]
[377449555,1754415056650,-151.0,0.00028903,2]
[377449556,1754415056658,-300.0,0.00028903,2]
[377449558,1754415056668,-151.0,0.00028903,2]
[377449560,1754415056677,-300.0,0.00028903,2]
[377449562,1754415056686,-300.0,0.00028903,2]
[377449564,1754415056696,-300.0,0.00028903,2]
[377449567,1754415056705,-300.0,0.00028903,2]
[377449569,1754415056714,-300.0,0.00028903,2]
[377449571,1754415056724,-300.0,0.00028903,2]
[377449572,1754415056733,-300.0,0.00028903,2]
[377449575,1754415056742,-151.0,0.00028903,2]
[377449577,1754415056752,-300.0,0.00028903,2]
[377449578,1754415056760,-226.3786932,0.00028903,2]
[377449580,1754415056770,-300.0,0.00028903,2]
[377449583,1754415056779,-151.0,0.00028903,2]
[377449584,1754415056788,-300.0,0.00028903,2]
[377449586,1754415056798,-151.0,0.00028903,2]
[377449589,1754415056807,-300.0,0.00028903,2]
[377449591,1754415056817,-300.0,0.00028903,2]
[377449592,1754415056827,-151.0,0.00028903,2]
[377449594,1754415056836,-151.0,0.00028903,2]
[377449596,1754415056845,-151.0,0.00028903,2]
[377449598,1754415056854,-151.0,0.00028903,2]
[377449601,1754415056863,-151.0,0.00028903,2]
[377449603,1754415056872,-151.0,0.00028903,2]
[377449604,1754415056881,-151.0,0.00028903,2]
[377449606,1754415056890,-151.0,0.00028903,2]
[377449608,1754415056899,-151.0,0.00028903,2]
[377449610,1754415056909,-151.0,0.00028903,2]
[377449612,1754415056919,-151.0,0.00028903,2]
[377449615,1754415056928,-151.0,0.00028903,2]
[377449617,1754415056939,-151.0,0.00028903,2]
[377449619,1754415056948,-600.0,0.00028919,2]
[377449621,1754415056957,-386.23,0.00028919,2]
[377449623,1754415056966,-1000.0,0.00028928,5]
[377449624,1754415056975,-208.24583874,0.0002893,2]
[377449627,1754415056985,-360.0,0.00028944,2]
[377449629,1754415056994,-2264.10087164,0.00028958,2]
[377449631,1754415057003,-153.2878588,0.00028961,15]
[377449632,1754415057012,-200.0,0.00028985,15]
[377449635,1754415057026,-300.0,0.00028985,15]
[377449636,1754415057035,-1666.92341779,0.00029,2]
[377449639,1754415057044,-250.530879,0.00029,2]
[377449641,1754415057054,-2347.87260389,0.00029013,2]
[377449642,1754415057064,-1000.0,0.00029016,2]
[377449644,1754415057074,-257.00094126,0.00029016,5]
[377449647,1754415057084,-2000.0,0.00029016,5]
[377449649,1754415057096,-571.67,0.00029041,2]
[377449650,1754415057105,-460.0,0.00029041,2]
[377449652,1754415057115,-460.0,0.00029041,2]
[377449654,1754415057124,-500.0,0.00029041,2]
[377449656,1754415057134,-986.09,0.00029041,2]
[377449659,1754415057144,-489.22,0.00029041,2]
[377449661,1754415057153,-3352.64,0.00029041,2]
[377449663,1754415057162,-460.0,0.00029041,2]
[377449665,1754415057172,-565.26,0.00029041,2]
[377449667,1754415057181,-1270.03,0.00029041,2]
[377449669,1754415057190,-460.0,0.00029041,2]
[377449671,1754415057199,-1043.48,0.00029041,2]
[377449673,1754415057209,-460.0,0.00029041,2]
[377449675,1754415057218,-669.24,0.00029041,2]
[377449677,1754415057227,-263.01861444,0.00029041,2]
[377449679,1754415057236,-460.0,0.00029041,2]
[377449680,1754415057245,-460.0,0.00029041,2]
[377449683,1754415057255,-460.0,0.00029041,2]
[377449685,1754415057264,-661.32,0.00029041,2]
[377449687,1754415057273,-460.0,0.00029041,2]
[377449689,1754415057282,-151.0,0.00029041,7]
[377449691,1754415057291,-264.85102485,0.00029041,2]
[377449692,1754415057300,-460.0,0.00029041,2]
[377449694,1754415057309,-846.11,0.00029041,2]
[377449696,1754415057318,-460.0,0.00029041,2]
[377449698,1754415057329,-151.0,0.00029041,7]
[377449701,1754415057339,-368.10507367,0.00029041,2]
[377449703,1754415057349,-460.0,0.00029041,2]
[377449705,1754415057358,-151.0,0.00029041,7]
[377449707,1754415057366,-151.0,0.00029041,7]
[377449709,1754415057377,-151.0,0.00029041,7]
[377449711,1754415057387,-3818.35,0.00029041,2]
[377449713,1754415057397,-155.690815,0.00029041,7]
[377449714,1754415057407,-2389.53,0.00029041,2]
[377449716,1754415057415,-535.36,0.00029041,2]
[377449718,1754415057425,-155.690815,0.00029041,7]
[377449721,1754415057434,-472.67347861,0.00029041,2]
[377449723,1754415057443,-56223.51,0.00029041,2]
[377449724,1754415057453,-460.0,0.00029041,2]
[377449727,1754415057463,-2020.1,0.00029041,2]
[377449729,1754415057473,-1687.27,0.00029041,2]
[377449730,1754415057483,-487.65,0.00029041,2]
[377449733,1754415057493,-460.0,0.00029041,2]
[377449735,1754415057502,-460.0,0.00029041,2]
[377449737,1754415057511,-580.98689346,0.00029041,2]
[377449739,1754415057520,-460.0,0.00029041,2]
[377449741,1754415057529,-460.0,0.00029041,2]
[377449742,1754415057538,-460.0,0.00029041,2]
[377449745,1754415057547,-646.27,0.00029041,2]
[377449747,1754415057556,-460.0,0.00029041,2]
[377449749,1754415057565,-928.38,0.00029041,2]
[377449750,1754415057576,-1122.11,0.00029041,2]
[377449752,1754415057585,-1784.15,0.00029041,2]
[377449754,1754415057594,-1060.85,0.00029041,2]
[377449756,1754415057603,-460.0,0.00029041,2]
[377449759,1754415057613,-460.0,0.00029041,2]
[377449761,1754415057622,-701.38,0.00029041,2]
[377449763,1754415057631,-525.29,0.00029041,2]
[377449765,1754415057640,-460.0,0.00029041,2]
[377449767,1754415057650,-2833.3,0.00029041,2]
[377449769,1754415057659,-460.0,0.00029041,2]
[377449771,1754415057668,-460.0,0.00029041,2]
[377449773,1754415057677,-175.93159362,0.00029041,2]
[377449775,1754415057687,-460.0,0.00029041,2]
[377449777,1754415057696,-460.0,0.00029041,2]
[377449779,1754415057705,-465.19542519,0.00029041,2]
[377449781,1754415057715,-1926.76,0.00029041,2]
[377449783,1754415057724,-460.0,0.00029041,2]
[377449785,1754415057734,-460.0,0.00029041,2]
[377449796,1754415057744,-1135.24,0.00029041,2]
[377449800,1754415057855,-460.0,0.00029041,2]
[377449802,1754415057866,-1547.47,0.00029041,2]
[377449805,1754415057876,-675.85,0.00029041,2]
[377449806,1754415057887,-460.0,0.00029041,2]
[377449809,1754415057897,-862.88,0.00029041,2]
[377449811,1754415057907,-462.3,0.00029041,2]
[377449813,1754415057916,-828.49,0.00029041,2]
[377449815,1754415057926,-460.0,0.00029041,2]
[377449816,1754415057935,-460.0,0.00029041,2]
[377449819,1754415057944,-460.0,0.00029041,2]
[377449821,1754415057953,-460.0,0.00029041,2]
[377449823,1754415057963,-460.0,0.00029041,2]
[377449825,1754415057972,-827.63,0.00029041,2]
[377449827,1754415057982,-467.25364845,0.00029041,2]